fUSD/lending_fUSD_20250417
["ID","MTS","AMOUNT","RATE_DAILY","PERIOD"]
[358289026,1744897844920,-250.0,0.003,60]
[358289027,1744897844930,-5000.0,0.003,120]
[358289028,1744897844939,-498.72,0.003,120]
[358289029,1744897844949,-553.33,0.003,120]
[358289030,1744897844959,-623.21367248,0.00301358,120]
[358289031,1744897844968,-500.0,0.00301358,120]
[358289032,1744897844978,-500.0,0.00301358,120]
[358289033,1744897844987,-500.0,0.00301358,120]
[358289034,1744897844998,-500.0,0.00301358,120]
[358289035,1744897845007,-500.0,0.00301358,120]
[358289036,1744897845017,-500.0,0.00301358,120]
[358289037,1744897845027,-500.0,0.00301358,30]
[358289038,1744897845038,-500.0,0.00301358,120]
[358289039,1744897845047,-1166.49,0.00301358,120]
[358289040,1744897845057,-500.0,0.00301358,120]
[358289041,1744897845066,-1553.63,0.00301358,120]
[358289042,1744897845075,-707.79,0.00301358,120]
[358289043,1744897845085,-500.0,0.00301358,120]
[358289044,1744897845095,-500.0,0.00304108,120]
[358289045,1744897845105,-500.0,0.00304108,120]
[358289046,1744897845115,-500.0,0.00304108,120]
[358289047,1744897845126,-500.0,0.00304108,120]
[358289048,1744897845136,-500.0,0.00304108,120]
[358289049,1744897845146,-525.22,0.00304108,120]
[358289050,1744897845155,-500.0,0.00304108,120]
[358289051,1744897845165,-3236.65820405,0.00306818,90]
[358289052,1744897845175,-14007.3971545,0.00306828,90]
[358289053,1744897845184,-6473.3164081,0.00306828,90]
[358289054,1744897845194,-3236.65820405,0.00306838,90]
[358289055,1744897845204,-500.0,0.00306838,120]
[358289056,1744897845214,-235.75,0.00306838,120]
[358289057,1744897845224,-500.0,0.00306838,120]
[358289058,1744897845234,-500.0,0.00306838,120]
[358289059,1744897845244,-500.0,0.00306838,120]
[358289060,1744897845254,-500.0,0.00306838,120]
[358289061,1744897845264,-500.0,0.00306838,120]
[358289062,1744897845274,-555.41430616,0.00306838,120]
[358289063,1744897845284,-500.0,0.00306838,120]
[358289064,1744897845294,-564.57,0.00306838,120]
[358289065,1744897845304,-500.0,0.00306838,120]
[358289066,1744897845314,-500.0,0.00306838,120]
[358289067,1744897845324,-500.0,0.00306838,120]
[358289068,1744897845334,-500.0,0.00306838,120]
[358289069,1744897845343,-500.0,0.00306838,120]
[358289070,1744897845353,-500.0,0.00306838,120]
[358289071,1744897845363,-596.31,0.00306838,120]
[358289072,1744897845373,-500.0,0.00306838,120]
[358289073,1744897845383,-500.0,0.00306838,120]
[358289074,1744897845393,-500.0,0.00306838,120]
[358289075,1744897845403,-546.54,0.00306838,120]
[358289076,1744897845412,-500.0,0.00306838,120]
[358289077,1744897845422,-500.0,0.00306838,120]
[358289078,1744897845432,-500.0,0.00306838,120]
[358289079,1744897845441,-500.0,0.00306838,120]
[358289080,1744897845451,-500.0,0.00306838,120]
[358289081,1744897845461,-921.89,0.00306838,120]
[358289082,1744897845471,-485.78959782,0.00306838,120]
[358289083,1744897845482,-2444.84,0.00306838,7]
[358289084,1744897845491,-500.0,0.00306838,120]
[358289085,1744897845501,-500.0,0.00306838,120]
[358289086,1744897845511,-1094.29,0.00306838,120]
[358289087,1744897845521,-500.0,0.00306838,90]
[358289088,1744897845530,-7003.69857724,0.00306839,90]
[358289089,1744897845539,-3236.65820405,0.00306839,90]
[358289090,1744897845549,-620.00228841,0.00306848,2]
[358289091,1744897845562,-500.0,0.00306848,120]
[358289092,1744897845572,-500.0,0.00306848,120]
[358289093,1744897845582,-500.0,0.00306848,120]
[358289094,1744897845591,-437.99694598,0.00306848,120]
[358289095,1744897845603,-1812.62,0.00306848,120]
[358289096,1744897845612,-568.34,0.00306848,120]
[358289097,1744897845622,-499.25942145,0.00306848,120]
[358289098,1744897845631,-793.72,0.00306848,120]
[358289099,1744897845640,-500.0,0.00306848,120]
[358289100,1744897845650,-500.0,0.00306848,2]
[358289101,1744897845660,-1109.38,0.00306848,120]
[358289102,1744897845673,-674.79,0.00306849,2]
[358289103,1744897845683,-500.0,0.00306849,120]
[358289104,1744897845692,-500.0,0.00306849,120]
[358289105,1744897845702,-373.868474,0.00306849,120]
[358289106,1744897845712,-500.0,0.00306849,120]
[358289107,1744897845723,-500.0,0.00306849,120]
[358289108,1744897845732,-500.0,0.00306849,120]
[358289109,1744897845741,-515.66,0.00306849,120]
[358289110,1744897845752,-507.34991247,0.00306849,120]
[358289111,1744897845762,-644.24682883,0.00306849,120]
[358289112,1744897845772,-500.0,0.00306849,120]
[358289113,1744897845782,-2265.76,0.00306849,120]
[358289114,1744897845791,-500.0,0.00306849,120]
[358289115,1744897845801,-542.49830496,0.00306849,120]
[358289116,1744897845810,-561.0,0.00306849,120]
[358289117,1744897845820,-500.0,0.00306849,120]
[358289118,1744897845830,-500.0,0.00306849,120]
[358289119,1744897845839,-500.0,0.00306849,120]
[358289120,1744897845850,-500.0,0.00306849,120]
[358289121,1744897845860,-458.14,0.00306849,120]
[358289122,1744897845870,-500.0,0.00306849,2]
[358289123,1744897845879,-500.0,0.00306849,120]
[358289124,1744897845889,-500.0,0.00306849,120]
[358289125,1744897845898,-500.0,0.00306849,120]
[358289126,1744897845908,-500.0,0.00306849,120]
[358289127,1744897845919,-500.0,0.00306849,120]
[358289128,1744897845929,-316.37301979,0.00308901,120]
[358289129,1744897845939,-339.51,0.00312317,120]
[358289130,1744897845948,-500.0,0.00312317,120]
[358289131,1744897845958,-500.0,0.00312317,120]
[358289132,1744897845967,-500.0,0.00312317,120]
[358289133,1744897845977,-500.0,0.00312317,120]
[358289134,1744897845986,-500.0,0.00312317,120]
[358289135,1744897845996,-500.0,0.00312317,30]
[358289137,1744897846006,-1166.49,0.00312317,120]
[358289139,1744897846015,-500.0,0.00312317,120]
[358289141,1744897846024,-1553.63,0.00312317,120]
[358289143,1744897846034,-707.79,0.00312317,120]
[358289145,1744897846044,-500.0,0.00312317,120]
[358289147,1744897846053,-2499.999999,0.00312751,2]
[358289149,1744897846063,-500.0,0.003149,114]
[358289151,1744897846072,-3236.65820405,0.00315037,90]
[358289153,1744897846081,-7003.69857724,0.00315047,90]
[358289155,1744897846091,-3236.65820405,0.00315047,90]
[358289157,1744897846100,-3236.65820405,0.00315048,90]
[358289159,1744897846110,-500.0,0.00315057,120]
[358289161,1744897846120,-624.44,0.00315057,120]
[358289171,1744897846239,-355.18434952,0.00315057,120]
[358289172,1744897846249,-500.0,0.00315057,120]
[358289173,1744897846258,-500.0,0.00315057,120]
[358289174,1744897846268,-500.0,0.00315057,120]
[358289175,1744897846277,-500.0,0.00315057,120]
[358289176,1744897846287,-500.0,0.00315057,120]
[358289177,1744897846296,-289.29,0.00315057,120]
[358289178,1744897846306,-500.0,0.00315057,120]
[358289179,1744897846315,-500.0,0.00315057,120]
[358289180,1744897846324,-500.0,0.00315057,120]
[358289181,1744897846333,-500.0,0.00315057,120]
[358289182,1744897846343,-500.0,0.00315057,120]
[358289183,1744897846352,-500.0,0.00315057,120]
[358289184,1744897846362,-500.0,0.00315057,120]
[358289185,1744897846371,-500.0,0.00315057,120]
[358289187,1744897846380,-211.53,0.00315057,120]
[358289189,1744897846390,-500.0,0.00315057,120]
[358289191,1744897846399,-500.0,0.00315057,120]
[358289193,1744897846408,-921.89,0.00315057,120]
[358289195,1744897846417,-2444.84,0.00315057,7]
[358289197,1744897846427,-500.0,0.00315057,120]
[358289199,1744897846436,-500.0,0.00315057,120]
[358289201,1744897846445,-1094.29,0.00315057,120]
[358289203,1744897846455,-513.63511304,0.00315057,90]
[358289205,1744897846464,-7003.69857724,0.00315057,90]
[358289207,1744897846473,-7003.69857724,0.00315058,90]
[358289209,1744897846484,-3236.65820405,0.00315058,90]
[358289211,1744897846494,-500.0,0.00315067,120]
[358289213,1744897846503,-500.0,0.00315067,120]
[358289215,1744897846513,-330.26,0.00315067,120]
[358289216,1744897846522,-1812.62,0.00315067,120]
[358289218,1744897846531,-793.72,0.00315067,120]
[358289220,1744897846540,-500.0,0.00315067,120]
[358289222,1744897846550,-500.0,0.00315067,120]
[358289224,1744897846559,-500.0,0.00315067,120]
[358289226,1744897846569,-500.0,0.00315067,120]
[358289228,1744897846579,-500.0,0.00315067,120]
[358289230,1744897846588,-500.0,0.00315067,120]
[358289232,1744897846598,-525.22,0.00315067,120]
[358289234,1744897846607,-500.0,0.00315067,120]
[358289236,1744897846617,-674.79,0.00315068,2]
[358289238,1744897846627,-454.54,0.00315068,120]
[358289240,1744897846637,-500.0,0.00315068,120]
[358289242,1744897846646,-500.44312,0.00315068,120]
[358289244,1744897846656,-500.0,0.00315068,120]
[358289246,1744897846665,-500.0,0.00315068,120]
[358289248,1744897846677,-515.66,0.00315068,120]
[358289250,1744897846686,-500.0,0.00315068,120]
[358289252,1744897846696,-2265.76,0.00315068,120]
[358289254,1744897846705,-500.0,0.00315068,120]
[358289256,1744897846715,-561.0,0.00315068,120]
[358289258,1744897846725,-500.0,0.00315068,120]
[358289260,1744897846734,-500.0,0.00315068,120]
[358289262,1744897846744,-167.35159465,0.00317808,120]
[358289264,1744897846754,-500.0,0.00317808,120]
[358289266,1744897846764,-500.0,0.00317808,2]
[358289268,1744897846773,-500.0,0.00317808,120]
[358289270,1744897846783,-415.78,0.00317808,120]
[358289272,1744897846792,-500.0,0.00317808,120]
[358289274,1744897846801,-500.0,0.00317808,120]
[358289276,1744897846810,-500.0,0.00317808,120]
[358289278,1744897846820,-3236.65820405,0.00323266,90]
[358289280,1744897846829,-500.0,0.00323276,120]
[358289282,1744897846838,-500.0,0.00323276,120]
[358289284,1744897846849,-532.87,0.00323276,120]
[358289286,1744897846858,-500.0,0.00323276,120]
[358289288,1744897846867,-169.17,0.00323276,120]
[358289290,1744897846878,-500.0,0.00323276,120]
[358289292,1744897846887,-500.0,0.00323276,120]
[358289294,1744897846896,-254.93,0.00323276,120]
[358289296,1744897846906,-500.0,0.00323276,120]
[358289297,1744897846916,-500.0,0.00323276,120]
[358289299,1744897846926,-500.0,0.00323276,120]
[358289301,1744897846935,-921.89,0.00323276,120]
[358289302,1744897846945,-1269.18151011,0.00323276,7]
[358289303,1744897847054,-1175.65848989,0.00323276,7]
[358289304,1744897847068,-500.0,0.00323276,120]
[358289305,1744897847082,-500.0,0.00323276,120]
[358289306,1744897847096,-286.37684974,0.00323276,120]
[358289307,1744897847118,-807.91315026,0.00323276,120]
[358289308,1744897847134,-324.25684974,0.00323276,120]
[358289309,1744897847150,-175.74315026,0.00323276,120]
[358289310,1744897847162,-500.0,0.00323276,120]
[358289311,1744897847175,-500.0,0.00323276,120]
[358289312,1744897847189,-260.179249,0.00323276,120]
[358289313,1744897847322,-239.820751,0.00323276,120]
[358289314,1744897847336,-500.0,0.00323276,30]
[358289315,1744897847348,-185.04633845,0.00323276,120]
[358289316,1744897847366,-981.44366155,0.00323276,120]
[358289317,1744897847383,-166.38633845,0.00323276,120]
[358289318,1744897847399,-333.61366155,0.00323276,120]
[358289319,1744897847412,-1104.36274385,0.00323276,120]
[358289320,1744897847427,-449.26725615,0.00323276,120]
[358289321,1744897847437,-707.79,0.00323276,120]
[358289322,1744897847450,-500.0,0.00323276,120]
[358289323,1744897847466,-7003.69857724,0.00323276,90]
[358289324,1744897847480,-3236.65820405,0.00323276,90]
[358289325,1744897847490,-500.0,0.00323286,120]
[358289326,1744897847501,-500.0,0.00323286,120]
[358289327,1744897847512,-1812.62,0.00323286,120]
[358289328,1744897847525,-793.72,0.00323286,120]
[358289329,1744897847540,-500.0,0.00323286,120]
[358289330,1744897847552,-674.79,0.00323287,2]
[358289331,1744897847564,-500.0,0.00323287,120]
[358289332,1744897847576,-500.0,0.00323287,120]
[358289333,1744897847587,-500.0,0.00323287,120]
[358289334,1744897847599,-515.66,0.00323287,120]
[358289335,1744897847611,-500.0,0.00323287,120]
[358289336,1744897847624,-2265.76,0.00323287,120]
[358289337,1744897847636,-500.0,0.00323287,120]
[358289338,1744897847648,-561.0,0.00323287,120]
[358289339,1744897847659,-500.0,0.00323287,120]
[358289340,1744897847673,-500.0,0.00323287,120]
[358289341,1744897847688,-2124.33601915,0.00324634,15]
[358289342,1744897847700,-500.0,0.00326026,120]
[358289343,1744897847713,-500.0,0.00326026,120]
[358289344,1744897847726,-500.0,0.00326026,120]
[358289345,1744897847739,-500.0,0.00326026,120]
[358289346,1744897847752,-500.0,0.00326026,120]
[358289347,1744897847764,-525.22,0.00326026,120]
[358289348,1744897847776,-500.0,0.00326026,120]
[358289349,1744897847788,-3236.65820405,0.00326204,90]
[358289350,1744897847801,-500.0,0.00326214,7]
[358289351,1744897847813,-500.0,0.00326214,5]
[358289352,1744897847826,-500.0,0.00326214,120]
[358289353,1744897847838,-863.54,0.00327,120]
[358289354,1744897847850,-150.0,0.00328767,5]
[358289355,1744897847861,-150.0,0.00328767,5]
[358289356,1744897847874,-200.0,0.00328767,5]
[358289357,1744897847883,-500.0,0.00328767,120]
[358289358,1744897847893,-500.0,0.00328767,2]
[358289359,1744897847903,-500.0,0.00328767,120]
[358289360,1744897847913,-479.46,0.00328767,120]
[358289361,1744897847923,-500.0,0.00328767,120]
[358289362,1744897847933,-299.60440094,0.00328767,120]
[358289363,1744897847942,-7003.69857724,0.00331485,90]
[358289364,1744897847952,-3236.65820405,0.00331485,90]
[358289365,1744897847962,-3236.65820405,0.00331495,90]
[358289366,1744897847972,-500.0,0.00331495,120]
[358289367,1744897847981,-494.88224,0.00331495,120]
[358289368,1744897847991,-500.0,0.00331495,120]
[358289369,1744897848000,-492.9,0.00331495,120]
[358289370,1744897848010,-500.0,0.00331495,120]
[358289371,1744897848020,-500.0,0.00331495,120]
[358289372,1744897848029,-500.0,0.00331495,120]
[358289373,1744897848039,-921.89,0.00331495,120]
[358289374,1744897848049,-2444.84,0.00331495,7]
[358289375,1744897848059,-557.96,0.00331495,120]
[358289376,1744897848069,-500.0,0.00331495,120]
[358289377,1744897848079,-1094.29,0.00331495,120]
[358289378,1744897848089,-7003.69857724,0.00331496,90]
[358289379,1744897848099,-500.0,0.00331505,120]
[358289380,1744897848108,-500.0,0.00331505,120]
[358289381,1744897848118,-1812.62,0.00331505,120]
[358289382,1744897848129,-793.72,0.00331505,120]
[358289383,1744897848139,-500.0,0.00331505,120]
[358289384,1744897848329,-674.79,0.00331506,2]
[358289385,1744897848341,-500.0,0.00331506,120]
[358289386,1744897848350,-500.0,0.00331506,120]
[358289387,1744897848360,-500.0,0.00331506,120]
[358289388,1744897848369,-515.66,0.00331506,120]
[358289389,1744897848381,-500.0,0.00331506,120]
[358289390,1744897848390,-2265.76,0.00331506,120]
[358289391,1744897848400,-500.0,0.00331506,120]
[358289392,1744897848410,-561.0,0.00331506,120]
[358289393,1744897848419,-500.0,0.00331506,120]
[358289394,1744897848429,-500.0,0.00331506,120]
[358289395,1744897848439,-1000.39626616,0.00331694,5]
[358289396,1744897848450,-500.0,0.00334235,120]
[358289397,1744897848460,-500.0,0.00334235,120]
[358289398,1744897848469,-500.0,0.00334235,120]
[358289399,1744897848479,-500.0,0.00334235,30]
[358289400,1744897848488,-1166.49,0.00334235,120]
[358289401,1744897848497,-500.0,0.00334235,120]
[358289402,1744897848507,-1553.63,0.00334235,120]
[358289403,1744897848517,-707.79,0.00334235,120]
[358289404,1744897848526,-500.0,0.00334235,120]
[358289405,1744897848535,-500.0,0.00336985,120]
[358289406,1744897848544,-500.0,0.00336985,120]
[358289407,1744897848554,-319.06769632,0.00336985,120]
[358289408,1744897848563,-500.0,0.00336985,120]
[358289409,1744897848572,-500.0,0.00336985,120]
[358289410,1744897848582,-525.22,0.00336985,120]
[358289411,1744897848591,-500.0,0.00336985,120]
[358289412,1744897848601,-3236.65820405,0.00339704,90]
[358289413,1744897848611,-7003.69857724,0.00339714,90]
[358289414,1744897848621,-3236.65820405,0.00339714,90]
[358289415,1744897848631,-173.87,0.00339715,120]
[358289416,1744897848640,-537.82,0.00339715,120]
[358289417,1744897848649,-500.0,0.00339715,120]
[358289418,1744897848659,-500.0,0.00339715,120]
[358289419,1744897848669,-500.0,0.00339715,120]
[358289420,1744897848683,-921.89,0.00339715,120]
[358289421,1744897848695,-2444.84,0.00339715,7]
[358289422,1744897848705,-500.0,0.00339715,120]
[358289423,1744897848715,-1094.29,0.00339715,120]
[358289424,1744897848724,-500.0,0.00339724,120]
[358289425,1744897848734,-500.0,0.00339724,120]
[358289426,1744897848744,-1812.62,0.00339724,120]
[358289427,1744897848753,-793.72,0.00339724,120]
[358289428,1744897848762,-500.0,0.00339724,120]
[358289429,1744897848772,-674.79,0.00339726,2]
[358289430,1744897848781,-500.0,0.00339726,120]
[358289431,1744897848791,-500.0,0.00339726,120]
[358289432,1744897848800,-500.0,0.00339726,120]
[358289433,1744897848809,-515.66,0.00339726,120]
[358289434,1744897848819,-500.0,0.00339726,120]
[358289435,1744897848828,-2265.76,0.00339726,120]
[358289436,1744897848838,-258.28,0.00339726,120]
[358289437,1744897848848,-561.0,0.00339726,120]
[358289438,1744897848857,-500.0,0.00339726,120]
[358289439,1744897848866,-500.0,0.00339726,120]
[358289440,1744897848876,-500.0,0.00339726,120]
[358289441,1744897848887,-620.30783271,0.00339726,2]
[358289442,1744897848897,-500.0,0.00339726,120]
[358289443,1744897848906,-500.0,0.00339726,120]
[358289444,1744897848917,-3236.65820405,0.0033998,90]
[358289445,1744897848927,-7003.69857724,0.0033999,90]
[358289446,1744897848936,-633.6460528,0.00344181,120]
[358289447,1744897848946,-2000.0,0.00345,120]
[358289448,1744897848956,-500.0,0.00345194,120]
[358289449,1744897848965,-500.0,0.00345194,120]
[358289450,1744897848975,-500.0,0.00345194,120]
[358289451,1744897848985,-500.0,0.00345194,30]
[358289452,1744897848994,-1166.49,0.00345194,120]
[358289453,1744897849003,-500.0,0.00345194,120]
[358289454,1744897849013,-1553.63,0.00345194,120]
[358289455,1744897849022,-707.79,0.00345194,120]
[358289456,1744897849032,-500.0,0.00345194,120]
[358289457,1744897849041,-250.0,0.00346851,60]
[358289458,1744897849051,-3236.65820405,0.00347925,90]
[358289459,1744897849061,-500.0,0.00347934,120]
[358289460,1744897849071,-500.0,0.00347934,120]
[358289461,1744897849082,-500.0,0.00347934,120]
[358289462,1744897849092,-921.89,0.00347934,120]
[358289463,1744897849102,-2444.84,0.00347934,7]
[358289464,1744897849112,-500.0,0.00347934,120]
[358289465,1744897849122,-1094.29,0.00347934,120]
[358289466,1744897849132,-7003.69857724,0.00347935,90]
[358289467,1744897849142,-3236.65820405,0.00347935,90]
[358289468,1744897849152,-500.76082198,0.00347935,30]
[358289469,1744897849162,-500.0,0.00347944,120]
[358289470,1744897849172,-500.0,0.00347944,120]
[358289471,1744897849181,-1812.62,0.00347944,120]
[358289472,1744897849191,-793.72,0.00347944,120]
[358289473,1744897849200,-500.0,0.00347944,120]
[358289474,1744897849210,-500.0,0.00347944,120]
[358289475,1744897849220,-500.0,0.00347944,120]
[358289476,1744897849230,-500.0,0.00347944,120]
[358289477,1744897849240,-500.0,0.00347944,120]
[358289478,1744897849251,-525.22,0.00347944,120]
[358289479,1744897849261,-500.0,0.00347944,120]
[358289480,1744897849270,-674.79,0.00347945,2]
[358289481,1744897849280,-500.0,0.00347945,120]
[358289482,1744897849290,-500.0,0.00347945,120]
[358289483,1744897849300,-500.0,0.00347945,120]
[358289484,1744897849309,-515.66,0.00347945,120]
[358289485,1744897849318,-500.0,0.00347945,120]
[358289486,1744897849328,-2265.76,0.00347945,120]
[358289487,1744897849338,-561.0,0.00347945,120]
[358289488,1744897849348,-500.0,0.00347945,120]
[358289489,1744897849358,-500.0,0.00347945,120]
[358289490,1744897849368,-1887.86,0.00348,120]
[358289491,1744897849379,-3236.65820405,0.0034998,90]
[358289492,1744897849389,-7003.69857724,0.0034999,90]
[358289493,1744897849399,-5000.0,0.0035,120]
[358289494,1744897849408,-500.0,0.00350684,120]
[358289495,1744897849418,-500.0,0.00350684,120]
[358289496,1744897849427,-500.0,0.00350684,120]
[358289497,1744897849437,-3236.65820405,0.00356144,90]
[358289498,1744897849446,-429.23335528,0.00356153,120]
[358289499,1744897849471,-1999.20541905,0.00337531,15]
[358289500,1744897849569,-20.52754287,0.00337531,15]
[358289501,1744897849593,-447.72946,0.00337531,15]
[358289502,1744897849604,-558.27543187,0.00337531,15]
[358289503,1744897849675,-500.0,0.00273972,120]
[358289504,1744897849687,-500.0,0.0028493,2]
[358289505,1744897849697,-343.55617806,0.00284931,120]
[358289506,1744897849706,-1000.0,0.00293792,120]
[358289507,1744897849716,-500.0,0.00295889,2]
[358289508,1744897849726,-418.14946775,0.00306848,2]
[358289509,1744897850968,-81.85053225,0.00306848,2]
[358289510,1744897850978,-500.0,0.00317807,2]
[358289511,1744897850988,-500.0,0.00328766,2]
[358289512,1744897850998,-1000.0,0.00330516,120]
[358289513,1744897851008,-3839.42536147,0.00337531,15]
[358289514,1744897851018,-500.0,0.00339724,2]
[358289515,1744897851027,-500.0,0.00350683,2]
[358289516,1744897851037,-70.76664472,0.00356153,120]
[358289517,1744897851047,-500.0,0.00356153,120]
[358289518,1744897851056,-921.89,0.00356153,120]
[358289519,1744897851066,-2444.84,0.00356153,7]
[358289520,1744897851077,-500.0,0.00356153,120]
[358289521,1744897851086,-1094.29,0.00356153,120]
[358289522,1744897851096,-500.0,0.00356153,120]
[358289523,1744897851105,-500.0,0.00356153,120]
[358289524,1744897851115,-500.0,0.00356153,120]
[358289525,1744897851126,-500.0,0.00356153,30]
[358289526,1744897851136,-1166.49,0.00356153,120]
[358289527,1744897851146,-500.0,0.00356153,120]
[358289528,1744897851155,-1028.44746156,0.00356153,120]
[358289529,1744897851167,-525.18253844,0.00356153,120]
[358289530,1744897851177,-707.79,0.00356153,120]
[358289531,1744897851186,-385.7811508,0.00356153,120]
[358289532,1744897851201,-114.2188492,0.00356153,120]
[358289533,1744897851317,-644.35874682,0.00356154,90]
[358289534,1744897851464,-284.1408232,0.00273972,120]
[358289535,1744897851476,-215.8591768,0.00273972,120]
[358289536,1744897851487,-500.0,0.0028219,120]
[358289537,1744897851497,-500.0,0.0028493,2]
[358289538,1744897851506,-500.0,0.00284931,120]
[358289539,1744897851516,-500.13996417,0.002904,120]
[358289540,1744897851525,-5306.98112335,0.00356154,90]
[358289541,1744897851538,-1052.35870707,0.00356154,90]
[358289542,1744897851548,-3236.65820405,0.00356154,90]
[358289543,1744897851557,-167.92702735,0.00356163,120]
[358289544,1744897851567,-1812.62,0.00356163,120]
[358289545,1744897851576,-793.72,0.00356163,120]
[358289546,1744897851586,-500.0,0.00356163,120]
[358289547,1744897851595,-18.20557153,0.00356164,2]
[358289548,1744897851646,-656.58442847,0.00356164,2]
[358289549,1744897851657,-241.91856731,0.00356164,120]
[358289550,1744897851758,-258.08143269,0.00356164,120]
[358289551,1744897851768,-500.0,0.00356164,120]
[358289552,1744897851778,-500.0,0.00356164,120]
[358289553,1744897851788,-515.66,0.00356164,120]
[358289554,1744897851797,-500.0,0.00356164,120]
[358289555,1744897851807,-2265.76,0.00356164,120]
[358289556,1744897851817,-561.0,0.00356164,120]
[358289557,1744897851827,-500.0,0.00356164,120]
[358289558,1744897851836,-500.0,0.00358903,120]
[358289559,1744897851846,-500.0,0.00358903,120]
[358289560,1744897851856,-500.0,0.00358903,120]
[358289561,1744897851866,-500.0,0.00358903,120]
[358289562,1744897851876,-525.22,0.00358903,120]
[358289563,1744897851886,-500.0,0.00358903,120]
[358289564,1744897851896,-150.0,0.00359038,120]
[358289565,1744897851905,-500.0,0.00361642,2]
[358289566,1744897851915,-500.0,0.00361643,120]
[358289567,1744897851925,-369.59,0.00361643,120]
[358289568,1744897851935,-163.71099721,0.00361643,120]
[358289569,1744897851945,-3236.65820405,0.00364363,90]
[358289570,1744897851956,-500.0,0.00364372,120]
[358289571,1744897851966,-500.0,0.00364372,120]
[358289572,1744897851976,-921.89,0.00364372,120]
[358289573,1744897851987,-2444.84,0.00364372,7]
[358289574,1744897851997,-500.0,0.00364372,120]
[358289575,1744897852006,-1094.29,0.00364372,120]
[358289576,1744897852016,-7003.69857724,0.00364373,90]
[358289577,1744897852027,-1812.62,0.00364382,120]
[358289578,1744897852036,-793.72,0.00364382,120]
[358289579,1744897852047,-500.0,0.00364382,120]
[358289580,1744897852057,-1109.38,0.00364382,120]
[358289581,1744897852067,-674.79,0.00364383,2]
[358289582,1744897852077,-500.0,0.00364383,120]
[358289583,1744897852086,-500.0,0.00364383,120]
[358289584,1744897852096,-500.0,0.00364383,120]
[358289585,1744897852105,-515.66,0.00364383,120]
[358289586,1744897852115,-524.80659142,0.00364383,120]
[358289587,1744897852124,-2265.76,0.00364383,120]
[358289588,1744897852134,-561.0,0.00364383,120]
[358289589,1744897852144,-360.23788505,0.00364383,120]
[358289590,1744897852156,-139.76211495,0.00364383,120]
[358289591,1744897852166,-282.23788505,0.00367112,120]
[358289592,1744897852178,-217.76211495,0.00367112,120]
[358289593,1744897852187,-500.0,0.00367112,120]
[358289594,1744897852196,-86.29278511,0.00367112,120]
[358289595,1744897852213,-413.70721489,0.00367112,120]
[358289596,1744897852222,-590.24,0.00367112,30]
[358289597,1744897852232,-1166.49,0.00367112,120]
[358289598,1744897852242,-623.03170081,0.00367112,120]
[358289599,1744897852251,-1553.63,0.00367112,120]
[358289600,1744897852261,-707.79,0.00367112,120]
[358289601,1744897852271,-500.0,0.00367112,120]
[358289602,1744897852281,-1000.0,0.0036724,120]
[358289603,1744897852291,-3236.65820405,0.00368812,90]
[358289604,1744897852300,-2501.32272667,0.00368822,119]